fUSD/lending_fUSD_20240227
["ID","MTS","AMOUNT","RATE_DAILY","PERIOD"]
[315397062,1709010632481,-200.0,0.0001785,2]
[315397063,1709010632491,-166.55063891,0.00017874,2]
[315397064,1709010632501,-1241.95935174,0.00017874,2]
[315397065,1709010632511,-3276.79469883,0.00017875,2]
[315397066,1709010632522,-35354.74,0.00017876,2]
[315397067,1709010632532,-500.0,0.00017887,2]
[315397068,1709010632541,-200.0,0.00017888,2]
[315397069,1709010632551,-150.99,0.00017888,2]
[315397070,1709010632561,-150.87,0.00018054,2]
[315397071,1709010632571,-1090.44,0.00018095,2]
[315397072,1709010632581,-157.73792996,0.00018096,2]
[315397073,1709010632591,-265.44568147,0.000181,2]
[315397074,1709010632602,-150.99,0.000181,2]
[315397075,1709010632612,-201.0,0.00018104,2]
[315397076,1709010632622,-150.87,0.00018148,2]
[315397077,1709010632631,-150.87,0.00018242,2]
[315397078,1709010632641,-150.87,0.00018336,2]
[315397079,1709010632651,-177.55,0.00018352,2]
[315397080,1709010632661,-163.13207324,0.00018363,2]
[315397081,1709010632670,-1000.0,0.00018364,2]
[315397082,1709010632680,-473.06,0.00018405,2]
[315397083,1709010632690,-157.73792984,0.00018413,2]
[315397084,1709010632700,-150.87,0.0001843,2]
[315397085,1709010632709,-150.87,0.00018524,2]
[315397086,1709010632719,-156.56668832,0.0001855,2]
[315397087,1709010632728,-181.54,0.00018577,2]
[315397088,1709010632737,-150.87,0.00018618,2]
[315397089,1709010632747,-172.25,0.00018645,2]
[315397090,1709010632756,-150.12903155,0.00018693,2]
[315397091,1709010632767,-150.87,0.00018712,2]
[315397092,1709010632777,-181.22,0.00018719,2]
[315397094,1709010632787,-157.73792984,0.0001873,2]
[315397096,1709010632797,-150.87,0.00018806,2]
[315397098,1709010632807,-150.87,0.000189,2]
[315397100,1709010632817,-150.87,0.00018994,2]
[315397102,1709010632826,-1069.41094567,0.00019028,2]
[315397104,1709010632837,-157.73792984,0.00019047,2]
[315397106,1709010632850,-188.52,0.00019145,2]
[315397108,1709010632860,-500.0,0.00019178,2]
[315397110,1709010632870,-3689.5181,0.00019239,2]
[315397113,1709010632879,-1000.0,0.00019338,2]
[315397116,1709010632889,-2230.42,0.00019361,2]
[315397118,1709010632899,-157.73792984,0.00019364,2]
[315397120,1709010632909,-1118.0,0.00019406,2]
[315397122,1709010632919,-150.0,0.00019417,2]
[315397124,1709010632929,-150.0,0.00019417,2]
[315397126,1709010632938,-362.3,0.00019465,2]
[315397128,1709010632949,-192.61,0.00019553,10]
[315397130,1709010632959,-316.10466345,0.00019579,2]
[315397132,1709010632969,-608.1079,0.0001958,2]
[315397134,1709010632979,-2500.0,0.0001958,2]
[315397136,1709010632988,-181.22,0.0001961,2]
[315397138,1709010632998,-201.0,0.00019656,4]
[315397140,1709010633007,-3650.6,0.0001967,2]
[315397142,1709010633017,-181414.03761764,0.0001968,2]
[315397145,1709010633032,-9103.63968236,0.0001968,2]
[315397147,1709010633041,-2457.8515,0.0001968,2]
[315397149,1709010633050,-6848.4947,0.0001968,2]
[315397151,1709010633060,-253.4241,0.0001968,2]
[315397153,1709010633069,-1000.0,0.0001968,2]
[315397155,1709010633080,-157.73792984,0.00019681,2]
[315397157,1709010633091,-203.63481,0.00019681,2]
[315397159,1709010633100,-150.0,0.00019723,2]
[315397161,1709010633110,-150.0,0.00019724,2]
[315397163,1709010633119,-150.0,0.00019726,2]
[315397165,1709010633129,-150.0,0.00019726,2]
[315397167,1709010633138,-303.76637308,0.00019727,2]
[315397170,1709010633149,-6918.48150472,0.00019729,2]
[315397172,1709010633162,-6783.49449528,0.00019729,2]
[315397174,1709010633172,-150.0,0.0001973,2]
[315397176,1709010633181,-150.0,0.0001973,2]
[315397178,1709010633193,-150.0,0.00019731,2]
[315397180,1709010633203,-150.0,0.00019732,2]
[315397182,1709010633213,-150.0,0.00019736,2]
[315397184,1709010633224,-150.0,0.00019737,2]
[315397186,1709010633234,-150.0,0.00019739,2]
[315397188,1709010633243,-150.0,0.00019745,2]
[315397190,1709010633253,-150.0,0.00019747,2]
[315397192,1709010633262,-150.0,0.0001975,2]
[315397194,1709010633272,-150.0,0.00019753,2]
[315397196,1709010633282,-152.6275068,0.00019754,2]
[315397198,1709010633291,-150.0,0.00019756,2]
[315397200,1709010633301,-1322.89225009,0.00019759,2]
[315397202,1709010633311,-150.0,0.00019762,2]
[315397204,1709010633320,-150.0,0.00019764,2]
[315397206,1709010633330,-150.0,0.00019767,2]
[315397208,1709010633339,-150.0,0.00019769,2]
[315397210,1709010633348,-150.0,0.00019772,2]
[315397213,1709010633358,-150.0,0.00019774,2]
[315397215,1709010633367,-150.0,0.00019777,2]
[315397217,1709010633378,-206.39305524,0.00019778,2]
[315397219,1709010633387,-278.38235404,0.00019778,2]
[315397221,1709010633396,-533.97630538,0.00019779,2]
[315397223,1709010633406,-100000.0,0.0001978,2]
[315397225,1709010633415,-1163.22440234,0.0001978,2]
[315397227,1709010633425,-200.0,0.00019781,2]
[315397229,1709010633434,-500.0,0.00019781,2]
[315397231,1709010633444,-150.0,0.00019784,2]
[315397233,1709010633453,-3650.6,0.0001979,2]
[315397235,1709010633463,-150.0,0.00019795,2]
[315397237,1709010633473,-150.0,0.00019797,2]
[315397239,1709010633482,-150.0,0.00019798,2]
[315397241,1709010633491,-45490.88410832,0.000198,2]
[315397243,1709010633501,-150.0,0.00019802,2]
[315397245,1709010633511,-150.0,0.00019806,2]
[315397247,1709010633522,-150.0,0.00019808,2]
[315397249,1709010633532,-150.0,0.00019809,2]
[315397251,1709010633542,-150.0,0.00019811,2]
[315397253,1709010633551,-150.0,0.00019815,2]
[315397255,1709010633561,-150.0,0.00019816,2]
[315397257,1709010633570,-150.0,0.00019818,2]
[315397259,1709010633580,-150.0,0.00019819,2]
[315397261,1709010633591,-249.18066457,0.0001982,2]
[315397264,1709010633601,-150.0,0.0001982,2]
[315397266,1709010633611,-150.0,0.00019821,2]
[315397268,1709010633621,-300.0,0.00019822,2]
[315397270,1709010633631,-150.0,0.00019828,2]
[315397272,1709010633640,-353.01,0.00019828,2]
[315397274,1709010633650,-150.0,0.00019828,2]
[315397276,1709010633660,-413.39,0.00019828,2]
[315397278,1709010633670,-150.0,0.00019828,2]
[315397280,1709010633680,-150.0,0.00019828,2]
[315397282,1709010633689,-300.0,0.00019828,2]
[315397284,1709010633698,-413.39,0.00019828,2]
[315397286,1709010633707,-423.47,0.00019828,2]
[315397288,1709010633719,-150.0,0.00019829,2]
[315397290,1709010633728,-150.0,0.00019834,2]
[315397292,1709010633738,-150.0,0.0001984,2]
[315397294,1709010633748,-1500.0,0.00019841,2]
[315397296,1709010633757,-150.0,0.00019842,2]
[315397298,1709010633768,-150.0,0.00019844,2]
[315397300,1709010633777,-150.0,0.00019845,2]
[315397302,1709010633787,-150.0,0.00019847,2]
[315397305,1709010633798,-150.0,0.00019848,2]
[315397307,1709010633808,-150.0,0.0001985,2]
[315397309,1709010633820,-150.0,0.00019851,2]
[315397311,1709010633831,-150.0,0.00019851,2]
[315397313,1709010633844,-150.0,0.00019852,2]
[315397314,1709010633855,-1500.0,0.00019854,2]
[315397316,1709010633866,-150.0,0.00019857,2]
[315397319,1709010633877,-150.0,0.00019857,2]
[315397321,1709010633887,-150.0,0.00019858,2]
[315397322,1709010633897,-150.0,0.00019865,2]
[315397324,1709010633908,-150.0,0.00019865,2]
[315397326,1709010633918,-150.0,0.00019871,2]
[315397328,1709010633929,-150.0,0.00019872,2]
[315397330,1709010633940,-150.0,0.00019873,2]
[315397333,1709010633951,-300.0,0.00019873,2]
[315397335,1709010633963,-150.0,0.00019877,2]
[315397336,1709010633973,-150.0,0.00019877,2]
[315397339,1709010633983,-150.0,0.00019885,2]
[315397341,1709010633993,-150.0,0.0001989,2]
[315397343,1709010634002,-239.7505497,0.0001989,2]
[315397345,1709010634012,-150.0,0.00019898,2]
[315397347,1709010634021,-150.0,0.000199,2]
[315397349,1709010634031,-155.0,0.000199,2]
[315397351,1709010634039,-12435.31051828,0.000199,2]
[315397353,1709010634049,-216.47239303,0.000199,2]
[315397355,1709010634059,-5904.05216474,0.000199,2]
[315397357,1709010634068,-175.33472494,0.000199,2]
[315397359,1709010634077,-175.33472493,0.000199,2]
[315397361,1709010634086,-175.33472493,0.000199,2]
[315397363,1709010634095,-150.0,0.00019905,2]
[315397365,1709010634104,-150.0,0.00019906,2]
[315397367,1709010634113,-150.0,0.00019907,2]
[315397369,1709010634122,-150.0,0.00019911,2]
[315397371,1709010634131,-918.0648248,0.00019912,2]
[315397373,1709010634140,-150.0,0.00019912,2]
[315397375,1709010634149,-150.0,0.00019914,2]
[315397377,1709010634158,-150.0,0.00019917,2]
[315397378,1709010634167,-150.0,0.00019917,2]
[315397381,1709010634177,-150.0,0.00019921,2]
[315397382,1709010634190,-150.0,0.00019921,2]
[315397384,1709010634199,-1500.0,0.00019923,2]
[315397385,1709010634209,-150.0,0.00019923,2]
[315397386,1709010634219,-300.0,0.00019925,2]
[315397387,1709010634229,-150.0,0.00019935,2]
[315397388,1709010634238,-150.0,0.00019935,2]
[315397389,1709010634247,-150.0,0.00019938,2]
[315397390,1709010634256,-150.0,0.0001994,2]
[315397391,1709010634266,-150.0,0.00019943,2]
[315397392,1709010634276,-150.0,0.00019945,2]
[315397393,1709010634285,-150.0,0.00019945,2]
[315397394,1709010634294,-150.0,0.00019948,2]
[315397395,1709010634303,-1500.0,0.0001995,2]
[315397396,1709010634312,-150.0,0.00019951,2]
[315397397,1709010634321,-150.0,0.00019954,2]
[315397398,1709010634331,-150.0,0.00019954,2]
[315397399,1709010634340,-1500.0,0.00019955,2]
[315397400,1709010634349,-150.0,0.00019955,2]
[315397401,1709010634359,-150.0,0.00019955,2]
[315397402,1709010634368,-150.0,0.00019957,2]
[315397403,1709010634378,-150.0,0.00019959,2]
[315397404,1709010634387,-1500.0,0.00019961,2]
[315397405,1709010634396,-150.0,0.00019962,2]
[315397406,1709010634406,-150.0,0.00019971,2]
[315397407,1709010634415,-150.0,0.00019972,2]
[315397408,1709010634425,-150.0,0.00019977,2]
[315397409,1709010634434,-150.0,0.00019978,2]
[315397410,1709010634443,-150.0,0.00019979,2]
[315397411,1709010634452,-150.0,0.00019979,2]
[315397412,1709010634462,-150.0,0.0001998,2]
[315397413,1709010634471,-150.0,0.00019982,2]
[315397414,1709010634480,-1987.9333086,0.00019986,2]
[315397415,1709010634490,-3618.6488405,0.00019986,2]
[315397416,1709010634499,-300.0,0.00019987,2]
[315397417,1709010634508,-150.0,0.00019988,2]
[315397418,1709010634518,-266.10991184,0.0001999,2]
[315397419,1709010634528,-3650.6,0.0001999,2]
[315397420,1709010634537,-3650.6,0.0001999,2]
[315397421,1709010634546,-3650.6,0.0001999,2]
[315397422,1709010634556,-3650.6,0.0001999,2]
[315397423,1709010634565,-150.0,0.00019996,2]
[315397424,1709010634574,-150.0,0.00019996,2]
[315397425,1709010634584,-150.0,0.00019997,2]
[315397426,1709010634593,-157.73792984,0.00019998,2]
[315397427,1709010634602,-150.0,0.00019998,2]
[315397428,1709010634611,-204.62016545,0.00019999,2]
[315397429,1709010634621,-4987.33823048,0.00019999,2]
[315397430,1709010634630,-132927.60234888,0.0002,2]
[315397431,1709010634644,-668.81670017,0.0002,2]
[315397432,1709010634656,-1205.21503855,0.0002,2]
[315397433,1709010634668,-10340.21524211,0.0002,2]
[315397434,1709010634710,-1392.79107502,0.0002,2]
[315397435,1709010634721,-750.50126794,0.0002,2]
[315397436,1709010634760,-1304.49749029,0.0002,2]
[315397437,1709010634772,-1348.77054762,0.0002,2]
[315397438,1709010634787,-1867.57091508,0.0002,2]
[315397439,1709010634809,-1607.98254303,0.0002,2]
[315397440,1709010634821,-4340.4197431,0.0002,2]
[315397441,1709010634832,-429.38678047,0.0002,2]
[315397442,1709010634845,-14743.59033398,0.0002,2]
[315397443,1709010634856,-11059.9914,0.0002,2]
[315397444,1709010634874,-412.40873089,0.0002,2]
[315397445,1709010634890,-1049.93168254,0.0002,2]
[315397446,1709010634901,-529.79957519,0.0002,2]
[315397449,1709010638310,-157.32926696,0.00019999,2]
[315397450,1709010638320,-3326.38079314,0.00019999,2]
[315397452,1709010638330,-1903.16425307,0.0002,2]
[315397455,1709010638355,-1702.56515719,0.0002,2]
[315397457,1709010638367,-1087.55436641,0.0002,2]
[315397459,1709010638378,-4159.48566239,0.0002,2]
[315397461,1709010638390,-8654.44916676,0.0002,2]
[315397463,1709010638402,-98890.52264317,0.0002,2]
[315397464,1709010638536,-6659.27237416,0.0002,2]
[315397465,1709010638548,-4129.60206954,0.0002,2]
[315397696,1709010640904,-309.7406,0.0001958,2]
[315397698,1709010640913,-150.0,0.00019796,2]
[315397700,1709010640922,-74878.02749837,0.0002,2]
[315397943,1709010643401,-0.00876028,0.0002,2]
[315397956,1709010643514,-2783.556,0.0002,2]
[315397958,1709010643527,-399810.42815796,0.0002,2]
[315397960,1709010643537,-15000.0,0.0002,2]
[315397962,1709010643546,-837.18497168,0.0002,2]
[315397964,1709010643555,-287.62610585,0.0002,2]
[315397966,1709010643564,-2000.0,0.0002,2]
[315397968,1709010643573,-200.0,0.0002,2]
[315397970,1709010643583,-1000.0,0.0002,2]
[315397972,1709010643592,-3015.73054812,0.0002,3]
[315397974,1709010643601,-3015.73054812,0.0002,3]
[315397976,1709010643611,-3015.73054812,0.0002,3]
[315397978,1709010643620,-3015.73054812,0.0002,3]
[315397980,1709010643630,-3015.73054812,0.0002,3]
[315397982,1709010643639,-3015.73054812,0.0002,3]
[315397984,1709010643648,-3015.73054812,0.0002,3]
[315397986,1709010643659,-3015.73054812,0.0002,3]
[315397988,1709010643668,-3015.73054812,0.0002,3]
[315397990,1709010643678,-3015.72954812,0.0002,3]
[315397992,1709010643687,-526.94,0.00020076,2]
[315397994,1709010643696,-390.37247524,0.00020102,2]
[315397996,1709010643705,-362.3,0.00020153,2]
[315397998,1709010643715,-5904.05216467,0.00020173,2]
[315398000,1709010643724,-157.73792984,0.00020314,2]
[315398002,1709010643734,-150.63,0.00020316,2]
[315398004,1709010643743,-150.0,0.00020316,2]
[315398006,1709010643751,-150.0,0.00020316,2]
[315398008,1709010643760,-150.0,0.00020316,2]
[315398010,1709010643769,-150.0,0.00020316,2]
[315398012,1709010643780,-150.0,0.00020316,2]
[315398014,1709010643789,-150.0,0.00020316,2]
[315398016,1709010643798,-150.0,0.00020316,2]
[315398018,1709010643808,-150.0,0.00020316,2]
[315398020,1709010643817,-300.0,0.00020316,2]
[315398022,1709010643826,-350.45,0.00020316,2]
[315398024,1709010643835,-150.0,0.00020316,2]
[315398026,1709010643844,-150.0,0.00020316,2]
[315398028,1709010643853,-300.0,0.00020316,2]
[315398030,1709010643862,-150.0,0.00020316,2]
[315398032,1709010643871,-1090.44,0.00020359,2]
[315398034,1709010643881,-1163.22440234,0.00020411,2]
[315398060,1709010644106,-5904.05216467,0.00020445,2]
[315398062,1709010644117,-181.22,0.00020502,2]
[315398064,1709010644127,-2000.0,0.00020548,2]
[315398066,1709010644136,-19662.87,0.00020548,2]
[315398068,1709010644146,-3108.0,0.000206,2]
[315398070,1709010644155,-157.73792984,0.00020631,2]
[315398072,1709010644165,-1498.67830142,0.00020678,2]
[315398074,1709010644174,-152.0,0.00020691,3]
[315398076,1709010644183,-473.06,0.00020705,2]
[315398078,1709010644193,-5904.05216467,0.00020718,2]
[315398080,1709010644204,-3650.6,0.00020776,2]
[315398082,1709010644214,-15958.0,0.00020786,2]
[315398084,1709010644222,-2281.56,0.00020822,2]
[315398086,1709010644231,-362.3,0.00020842,2]
[315398088,1709010644240,-157.73792984,0.00020948,2]
[315398090,1709010644249,-5904.05216467,0.00020991,2]
[315398092,1709010644258,-2668.22546869,0.00021,4]
[315398094,1709010644267,-707.869999,0.00021,2]
[315398096,1709010644277,-355.74,0.00021,2]
[315398098,1709010644286,-1523.745711,0.00021,2]
[315398100,1709010644296,-2230.42,0.00021005,2]
[315398102,1709010644305,-150.0,0.00021137,2]
[315398104,1709010644314,-150.0,0.00021137,2]
[315398106,1709010644323,-150.0,0.00021137,2]
[315398108,1709010644332,-150.0,0.00021137,2]
[315398110,1709010644341,-300.0,0.00021137,2]
[315398112,1709010644350,-300.0,0.00021137,2]
[315398114,1709010644359,-150.0,0.00021137,2]
[315398116,1709010644368,-150.0,0.00021137,2]
[315398118,1709010644378,-150.0,0.00021137,2]
[315398120,1709010644387,-785.04,0.00021178,2]
[315398122,1709010644396,-2605.0,0.000212,2]
[315398124,1709010644405,-201.0,0.00021208,6]
[315398126,1709010644414,-152.0,0.00021231,4]
[315398128,1709010644423,-5461.91840971,0.00021264,2]
[315398152,1709010644643,-442.13375496,0.00021264,2]
[315398154,1709010644653,-157.73792984,0.00021265,2]
[315398156,1709010644663,-2500.0,0.00021292,2]
[315398158,1709010644672,-10.80854281,0.00021292,2]
[315398256,1709010646528,-251.72,0.000202,2]
[315398257,1709010646538,-689.97741763,0.00021291,2]
[315398258,1709010646548,-2489.19145719,0.00021292,2]
[315398259,1709010646557,-595.04,0.0002131,2]
[315398260,1709010646566,-1903.21,0.0002137,2]
[315398261,1709010646575,-181.22,0.00021393,2]
[315398262,1709010646585,-454.0,0.00021427,2]
[315398263,1709010646594,-155.0,0.00021427,2]
[315398264,1709010646603,-344.82,0.00021431,2]
[315398265,1709010646612,-576.55757027,0.00021433,2]
[315398266,1709010646625,-977.63442973,0.00021433,2]
[315398267,1709010646634,-1286.19029872,0.00021433,2]
[315398268,1709010646657,-18628.80970128,0.00021433,2]
[315398269,1709010646667,-8192.0,0.00021433,2]
[315398270,1709010646677,-4112.0,0.00021433,2]
[315398271,1709010646686,-2937.0,0.00021433,2]
[315398272,1709010646695,-2023.8747954,0.00021433,2]
[315398273,1709010646707,-5419.1252046,0.00021433,2]
[315398274,1709010646715,-11627.31497981,0.00021433,2]
[315398275,1709010646727,-3563.57081602,0.00021433,2]
[315398276,1709010646753,-15804.51603253,0.00021433,2]
[315398277,1709010646765,-873.88559492,0.00021433,2]
[315398278,1709010646780,-10856.71257672,0.00021433,2]
[315398279,1709010646789,-2297.0,0.00021433,2]
[315398280,1709010646798,-161.908,0.00021433,2]
[315398281,1709010646807,-346.211,0.00021433,2]
[315398282,1709010646815,-344.82,0.00021451,2]
[315398283,1709010646824,-344.82,0.00021451,2]
[315398284,1709010646833,-167.62,0.00021475,2]
[315398285,1709010646842,-166.25,0.00021475,2]
[315398286,1709010646852,-1500.0,0.000215,2]
[315398287,1709010646861,-362.3,0.0002153,2]
[315398288,1709010646870,-5904.05216467,0.00021536,2]
[315398289,1709010646879,-157.73792984,0.00021582,2]
[315398290,1709010646889,-152.0,0.00021772,5]
[315398291,1709010646898,-404.12,0.00021781,2]
[315398292,1709010646908,-1758.7929376,0.000218,2]
[315398293,1709010646917,-5904.05216467,0.00021809,2]
[315398294,1709010646927,-266.3,0.00021876,2]
[315398295,1709010646937,-381.08986696,0.00021898,2]
[315398296,1709010646946,-5000.0,0.00021899,2]
[315398297,1709010646955,-3477.17378666,0.00021899,2]
[315398298,1709010646965,-157.73792984,0.00021899,2]
[315398299,1709010646973,-309.08475553,0.000219,2]
[315398300,1709010646983,-605.11117046,0.000219,5]
[315398301,1709010646992,-797.77871408,0.000219,2]
[315398302,1709010647001,-300.0,0.00021917,2]
[315398303,1709010647010,-300.0,0.00021917,2]
[315398304,1709010647020,-300.0,0.00021917,2]
[315398305,1709010647030,-300.0,0.00021917,2]
[315398306,1709010647040,-300.0,0.00021917,2]
[315398307,1709010647049,-300.0,0.00021917,2]
[315398308,1709010647058,-300.0,0.00021917,2]
[315398309,1709010647067,-300.0,0.00021917,2]
[315398310,1709010647077,-300.0,0.00021917,2]
[315398311,1709010647086,-300.0,0.00021917,2]
[315398312,1709010647095,-309.15089949,0.00021917,2]
[315398313,1709010647104,-200.0,0.00021918,2]
[315398314,1709010647114,-151.84,0.00021918,2]
[315398315,1709010647123,-158.33,0.00021918,2]
[315398316,1709010647133,-160.65,0.00021918,2]
[315398317,1709010647142,-150.84,0.00021918,2]
[315398318,1709010647152,-233.73,0.00021918,2]
[315398319,1709010647162,-154.16,0.00021918,2]
[315398320,1709010647171,-388.61,0.00021918,2]
[315398321,1709010647181,-151.97,0.00021918,2]
[315398322,1709010647193,-1448.8,0.00021918,2]
[315398323,1709010647203,-2126.65,0.00021918,2]
[315398324,1709010647212,-227.23,0.00021918,2]
[315398325,1709010647221,-189.36,0.00021918,2]
[315398326,1709010647232,-166.94,0.00021918,2]
[315398327,1709010647242,-157.8,0.00021918,2]
[315398328,1709010647251,-789.0,0.00021918,2]
[315398329,1709010647260,-3650.6,0.00021919,2]
[315398330,1709010647270,-528.52,0.00021925,2]
[315398331,1709010647282,-16596.79,0.00021929,2]
[315398332,1709010647291,-170.192,0.00021933,2]
[315398333,1709010647300,-150.0,0.00021933,2]
[315398334,1709010647309,-250.0,0.00021933,2]
[315398335,1709010647318,-150.871,0.00021933,2]
[315398336,1709010647327,-150.467,0.00021945,2]
[315398337,1709010647336,-150.147,0.00021945,2]
[315398338,1709010647346,-1374.0,0.00021945,2]
[315398339,1709010647355,-2709.089,0.00021945,2]
[315398340,1709010647364,-604.025,0.00021945,2]
[315398341,1709010647375,-1258.0,0.00021945,2]
[315398342,1709010647383,-1244.921,0.00021945,2]
[315398343,1709010647393,-217.82,0.00021945,2]
[315398344,1709010647402,-1971.023,0.00021945,2]
[315398345,1709010647410,-280.242,0.00021945,2]
[315398346,1709010647420,-865.858,0.00021945,2]
[315398347,1709010647430,-1022.469,0.00021945,2]
[315398348,1709010647439,-342.492,0.00021945,2]
[315398349,1709010647448,-2937.14,0.00021945,2]
[315398350,1709010647457,-1144.147,0.00021945,2]
[315398351,1709010647466,-329.734,0.00021945,2]
[315398352,1709010647475,-1458.891,0.00021945,2]
[315398353,1709010647484,-2459.684,0.00021945,2]
[315398354,1709010647493,-439.116,0.00021945,2]
[315398355,1709010647502,-162.0,0.00021945,2]
[315398356,1709010647511,-217.547,0.00021945,2]
[315398357,1709010647520,-381.826,0.00021945,2]
[315398358,1709010647529,-689.52,0.00021973,2]
[315398359,1709010647538,-46849.61640334,0.00021977,2]
[315398360,1709010647875,-1404.07586516,0.00021977,2]
[315398363,1709010964651,780.74,0.00027,120]
[315398364,1709011021137,390.37,0.00024,60]
[315398365,1709011038668,452.25,0.0002312,30]
[315398367,1709011280481,151.0,0.00026861,120]
[315398368,1709011547561,151.0,0.00026987,120]
[315398369,1709011628146,-231.65468282,0.00015659,2]
[315398370,1709011749136,-231.64858688,0.00015658,2]
[315398371,1709011758108,-810.88960118,0.00015658,2]
[315398372,1709011758127,-458.32273481,0.00015659,2]
[315398373,1709011758146,-148.84092919,0.0001566,2]
[315398374,1709011764084,-6.15907081,0.0001566,2]
[315398375,1709011764103,-288.25409098,0.00017818,2]
[315398384,1709011831565,-610.44814184,0.00017818,2]
[315398385,1709011831579,-46.28776718,0.00017818,2]
[315398386,1709011831589,-207.0,0.00018759,2]
[315398387,1709011831599,-200.0,0.00019241,2]
[315398388,1709011831609,-316.17,0.00019245,2]
[315398389,1709011831619,-200.0,0.00019245,2]
[315398390,1709011831629,-150.0,0.00019255,2]
[315398391,1709011831639,-6885.22989178,0.00019256,2]
[315398392,1709011831665,-344.21241383,0.00019256,2]
[315398393,1709011831678,-5993.46139977,0.00019256,2]
[315398394,1709011831690,-2071.17267269,0.00019256,2]
[315398395,1709011831701,-8605.92362193,0.00019256,2]
[315398396,1709011831710,-273.33,0.00019261,2]
[315398397,1709011831720,-250.0,0.00019274,2]
[315398398,1709011831729,-500.0,0.00019293,2]
[315398399,1709011831739,-500.0,0.00019301,2]
[315398400,1709011831749,-363.05,0.00019317,2]
[315398401,1709011831758,-282.64,0.00019463,2]
[315398402,1709011831767,-162.34325157,0.0001948,2]
[315398403,1709011831777,-879.0304,0.0001972,2]
[315398404,1709011831787,-1280.73,0.00019725,2]
[315398405,1709011831796,-29999.99,0.00019759,2]
[315398406,1709011831805,-162.34325155,0.00019783,2]
[315398407,1709011831815,-820.09,0.00019822,2]
[315398408,1709011831824,-169.67,0.00019909,2]
[315398409,1709011831833,-171.72,0.00019959,2]
[315398410,1709011831842,-683.83,0.00019992,2]
[315398411,1709011831852,-499.99,0.00019992,2]
[315398412,1709011831861,-1917.0,0.0002,5]
[315398413,1709011831871,-2686.0,0.0002,5]
[315398414,1709011831881,-171.45,0.00020026,2]
[315398415,1709011831890,-944.99,0.00020082,2]
[315398416,1709011831900,-162.34325155,0.00020085,2]
[315398417,1709011831909,-1006.4337,0.0002027,2]
[315398418,1709011831919,-162.34325155,0.00020388,2]
[315398419,1709011831929,-207.0,0.00020409,4]
[315398420,1709011831938,-200.0,0.00020454,2]
[315398421,1709011831947,-2500.0,0.000205,2]
[315398423,1709011831956,-2000.0,0.00020548,2]
[315398425,1709011831965,-162.34325155,0.0002069,2]
[315398427,1709011831975,-152.0,0.00020816,3]
[315398429,1709011831984,-200.0,0.00020821,2]
[315398431,1709011831994,-482.4746462,0.00020898,2]
[315398433,1709011832004,-541.0329199,0.00020898,2]
[315398435,1709011832013,-359.47823459,0.00020898,2]
[315398437,1709011832022,-155.08018218,0.00020899,2]
[315398439,1709011832031,-76674.5337,0.000209,2]
[315398441,1709011832040,-253.4241,0.000209,2]
[315398443,1709011832050,-730.12,0.0002099,2]
[315398445,1709011832059,-162.34325155,0.00020993,2]
[315398447,1709011832069,-12435.31051828,0.00020998,2]
[315398449,1709011832078,-28708.38704394,0.00021,2]
[315398451,1709011832087,-191.16788007,0.00021,2]
[315398453,1709011832097,-64738.60727169,0.00021,2]